[Event "Early-Titled-Tuesday-Blitz-February-06-2024"]
[Site "Chess.com"]
[Date "2024.02.06"]
[Round "8"]
[White "lilleper1"]
[Black "Maitreia"]
[Result "1-0"]
[WhiteElo "2922"]
[BlackElo "2759"]
[TimeControl "180+1"]
[EndTime "9:29:32 PST"]
[Termination "lilleper1 won by resignation"]

1. e4 {[%clk 0:03:00.9]} 1... c5 {[%clk 0:02:59.9]} 2. Nf3 {[%clk 0:03:00]} 2...
g6 {[%clk 0:03:00.5]} 3. c4 {[%clk 0:02:57.2]} 3... Nc6 {[%clk 0:02:59.5]} 4. d4
{[%clk 0:02:57.3]} 4... cxd4 {[%clk 0:03:00.4]} 5. Nxd4 {[%clk 0:02:58]} 5...
Bg7 {[%clk 0:02:57.2]} 6. Be3 {[%clk 0:02:57.9]} 6... Qb6 {[%clk 0:02:57.2]} 7.
Nb3 {[%clk 0:02:55.5]} 7... Qd8 {[%clk 0:02:56.8]} 8. Nc3 {[%clk 0:02:55.4]}
8... Bxc3+ {[%clk 0:02:56.9]} 9. bxc3 {[%clk 0:02:55.1]} 9... Nf6 {[%clk
0:02:57.8]} 10. f3 {[%clk 0:02:49.6]} 10... O-O {[%clk 0:02:57.4]} 11. c5 {[%clk
0:02:49]} 11... b6 {[%clk 0:02:57.4]} 12. cxb6 {[%clk 0:02:36.8]} 12... axb6
{[%clk 0:02:58]} 13. Bb5 {[%clk 0:02:37.1]} 13... Bb7 {[%clk 0:02:57.6]} 14. O-O
{[%clk 0:02:36.2]} 14... d5 {[%clk 0:02:56.9]} 15. Bxc6 {[%clk 0:02:33]} 15...
Bxc6 {[%clk 0:02:56]} 16. e5 {[%clk 0:02:33.4]} 16... Nd7 {[%clk 0:02:53.2]} 17.
Bh6 {[%clk 0:02:06.3]} 17... Nxe5 {[%clk 0:02:26.4]} 18. Bxf8 {[%clk 0:02:04.5]}
18... Kxf8 {[%clk 0:02:24.4]} 19. Qd4 {[%clk 0:01:55.8]} 19... f6 {[%clk
0:02:24.5]} 20. Qe3 {[%clk 0:01:50.6]} 20... Nc4 {[%clk 0:02:16.7]} 21. Qh6+
{[%clk 0:01:43.9]} 21... Kg8 {[%clk 0:02:16.3]} 22. Nd4 {[%clk 0:01:44.1]} 22...
Bd7 {[%clk 0:02:14.7]} 23. f4 {[%clk 0:01:44.4]} 23... Ra3 {[%clk 0:02:08.4]}
24. Rf3 {[%clk 0:01:35.3]} 24... Nd2 {[%clk 0:02:03.9]} 25. Re3 {[%clk 0:01:32]}
25... Ne4 {[%clk 0:02:03.4]} 26. f5 {[%clk 0:01:21.1]} 26... Bxf5 {[%clk
0:02:03.4]} 27. Nxf5 {[%clk 0:01:20]} 27... gxf5 {[%clk 0:02:04.3]} 28. Rh3
{[%clk 0:00:57.2]} 28... Ng5 {[%clk 0:01:59.4]} 29. Rg3 {[%clk 0:00:57.6]} 29...
Qf8 {[%clk 0:01:56.7]} 30. Qh4 {[%clk 0:00:51.2]} 30... Qc8 {[%clk 0:01:47.1]}
31. Qb4 {[%clk 0:00:48.6]} 31... Qc5+ {[%clk 0:01:38.4]} 32. Qxc5 {[%clk
0:00:43]} 32... bxc5 {[%clk 0:01:39.3]} 33. h4 {[%clk 0:00:43.4]} 33... f4
{[%clk 0:01:39.8]} 34. Rd3 {[%clk 0:00:41.6]} 34... Ne4 {[%clk 0:01:33.1]} 35.
Rxd5 {[%clk 0:00:41.6]} 35... Nxc3 {[%clk 0:01:11.5]} 36. Rxc5 {[%clk
0:00:39.7]} 36... Kf7 {[%clk 0:01:03.8]} 37. h5 {[%clk 0:00:38.7]} 37... h6
{[%clk 0:01:00.8]} 38. Rc7 {[%clk 0:00:36]} 38... f5 {[%clk 0:00:55.1]} 39. Rc6
{[%clk 0:00:18]} 39... e6 {[%clk 0:00:54.9]} 40. Rc8 {[%clk 0:00:18.2]} 40...
Ne2+ {[%clk 0:00:46]} 41. Kh2 {[%clk 0:00:16.2]} 41... Ng3 {[%clk 0:00:46.1]}
42. Rc6 {[%clk 0:00:14.4]} 42... Nxh5 {[%clk 0:00:44.8]} 43. Re1 {[%clk
0:00:14.1]} 43... Ng7 {[%clk 0:00:42.5]} 44. Re2 {[%clk 0:00:13.9]} 44... h5
{[%clk 0:00:35]} 45. Rb6 {[%clk 0:00:12.8]} 45... Kf6 {[%clk 0:00:34]} 46. Rb3
{[%clk 0:00:12]} 46... Ra4 {[%clk 0:00:34.5]} 47. a3 {[%clk 0:00:12.1]} 47... e5
{[%clk 0:00:33.1]} 48. Rb6+ {[%clk 0:00:11.7]} 48... Ne6 {[%clk 0:00:33.3]} 49.
Rc2 {[%clk 0:00:09.5]} 49... Ke7 {[%clk 0:00:27.4]} 50. Rcc6 {[%clk 0:00:09.4]}
50... Nd8 {[%clk 0:00:21.4]} 51. Rc7+ {[%clk 0:00:07.9]} 51... Ke8 {[%clk
0:00:20.5]} 52. Rg6 {[%clk 0:00:04.7]} 52... Kf8 {[%clk 0:00:18.5]} 53. Rh6
{[%clk 0:00:04.2]} 53... Kg8 {[%clk 0:00:18]} 54. Rd6 {[%clk 0:00:03.2]} 54...
Ra8 {[%clk 0:00:13.6]} 55. Rg6+ {[%clk 0:00:03.3]} 55... Kf8 {[%clk 0:00:13.9]}
56. Rf6+ {[%clk 0:00:03]} 56... Ke8 {[%clk 0:00:14.3]} 57. Rxf5 {[%clk
0:00:03.6]} 57... Ra5 {[%clk 0:00:08]} 58. Rxh5 {[%clk 0:00:03.3]} 58... Nf7
{[%clk 0:00:06.2]} 59. Rh7 {[%clk 0:00:03.5]} 59... e4 {[%clk 0:00:02.4]} 60.
Rcxf7 {[%clk 0:00:03.3]} 60... Rh5+ {[%clk 0:00:02.9]} 61. Rxh5 {[%clk
0:00:02.8]} 61... Kxf7 {[%clk 0:00:03.8]} 62. Rf5+ {[%clk 0:00:03.3]} 62... Ke6
{[%clk 0:00:03.9]} 63. Rxf4 {[%clk 0:00:04.2]} 63... e3 {[%clk 0:00:04.8]} 64.
Re4+ {[%clk 0:00:04.4]} 1-0

[Event "Early-Titled-Tuesday-Blitz-February-06-2024"]
[Site "Chess.com"]
[Date "2024.02.06"]
[Round "8"]
[White "Alex_Sahakyan2006"]
[Black "Njal28"]
[Result "1-0"]
[WhiteElo "2906"]
[BlackElo "3064"]
[TimeControl "180+1"]
[EndTime "9:29:37 PST"]
[Termination "Alex_Sahakyan2006 won on time"]

1. d4 {[%clk 0:02:56]} 1... c5 {[%clk 0:03:00.9]} 2. d5 {[%clk 0:02:55.8]} 2...
d6 {[%clk 0:03:01.2]} 3. c4 {[%clk 0:02:55.9]} 3... Nf6 {[%clk 0:03:02.1]} 4.
Nc3 {[%clk 0:02:56.4]} 4... g6 {[%clk 0:03:02.9]} 5. e4 {[%clk 0:02:56.6]} 5...
Bg7 {[%clk 0:03:03.7]} 6. f4 {[%clk 0:02:57.4]} 6... O-O {[%clk 0:03:04.3]} 7.
Nf3 {[%clk 0:02:58.1]} 7... e6 {[%clk 0:03:04.1]} 8. Be2 {[%clk 0:02:58.5]} 8...
exd5 {[%clk 0:03:04.5]} 9. cxd5 {[%clk 0:02:59.3]} 9... Bg4 {[%clk 0:03:04.9]}
10. O-O {[%clk 0:02:59.7]} 10... Bxf3 {[%clk 0:03:05.3]} 11. Bxf3 {[%clk
0:03:00]} 11... Nbd7 {[%clk 0:03:06.2]} 12. g4 {[%clk 0:03:00.5]} 12... Rb8
{[%clk 0:03:01.4]} 13. g5 {[%clk 0:03:00.4]} 13... Ne8 {[%clk 0:03:01.4]} 14. h4
{[%clk 0:03:00]} 14... b5 {[%clk 0:03:01]} 15. h5 {[%clk 0:03:00.6]} 15... c4
{[%clk 0:02:57.6]} 16. Be3 {[%clk 0:02:52.8]} 16... b4 {[%clk 0:02:48.5]} 17.
Ne2 {[%clk 0:02:49.8]} 17... Bxb2 {[%clk 0:02:42.3]} 18. Rb1 {[%clk 0:02:49.4]}
18... Bg7 {[%clk 0:02:32.6]} 19. Kg2 {[%clk 0:02:40.8]} 19... Nc7 {[%clk
0:02:02.7]} 20. Rh1 {[%clk 0:02:33.8]} 20... Re8 {[%clk 0:01:57.4]} 21. hxg6
{[%clk 0:02:25.1]} 21... fxg6 {[%clk 0:01:51.9]} 22. Nd4 {[%clk 0:02:21.6]}
22... Nxd5 {[%clk 0:01:33.4]} 23. exd5 {[%clk 0:02:06.9]} 23... Rxe3 {[%clk
0:01:34.3]} 24. Ne6 {[%clk 0:01:42.8]} 24... Qe7 {[%clk 0:00:58.5]} 25. Qg1
{[%clk 0:01:24.8]} 25... Ra3 {[%clk 0:00:53.6]} 26. Kg3 {[%clk 0:00:47.2]} 26...
Rxa2 {[%clk 0:00:41.4]} 27. Qf1 {[%clk 0:00:44.3]} 27... Rc2 {[%clk 0:00:21.1]}
28. Qh3 {[%clk 0:00:43.3]} 28... Nf8 {[%clk 0:00:21.7]} 29. Rbe1 {[%clk
0:00:36.1]} 29... Qf7 {[%clk 0:00:19.9]} 30. Re3 {[%clk 0:00:08.5]} 30... Rc3
{[%clk 0:00:20.1]} 31. Rxc3 {[%clk 0:00:05.1]} 31... bxc3 {[%clk 0:00:21]} 32.
Bg4 {[%clk 0:00:03.6]} 32... c2 {[%clk 0:00:19.5]} 33. Nxf8 {[%clk 0:00:01.8]}
33... Rb3+ {[%clk 0:00:20]} 34. Bf3 {[%clk 0:00:02.3]} 34... Bxf8 {[%clk
0:00:15]} 35. Qc8 {[%clk 0:00:02.6]} 35... Rxf3+ {[%clk 0:00:14.4]} 36. Kxf3
{[%clk 0:00:02.9]} 36... Qxd5+ {[%clk 0:00:15.2]} 37. Kg4 {[%clk 0:00:03.6]}
37... Qd1+ {[%clk 0:00:07.7]} 38. Kg3 {[%clk 0:00:02.3]} 38... Qd3+ {[%clk
0:00:05.6]} 39. Kg4 {[%clk 0:00:01.8]} 39... Qe2+ {[%clk 0:00:05.9]} 40. Kg3
{[%clk 0:00:02.2]} 40... d5 {[%clk 0:00:01.8]} 41. Qc7 {[%clk 0:00:02.2]} 41...
Qd3+ {[%clk 0:00:02.3]} 42. Kg4 {[%clk 0:00:02.4]} 42... Qf5+ {[%clk 0:00:02.7]}
43. Kg3 {[%clk 0:00:03]} 43... Qf7 {[%clk 0:00:02]} 44. Qc8 {[%clk 0:00:03.1]}
44... d4 {[%clk 0:00:01.1]} 45. Qc6 {[%clk 0:00:02.8]} 45... d3 {[%clk
0:00:01.5]} 46. Qc8 {[%clk 0:00:02.1]} 46... Qf5 {[%clk 0:00:01.5]} 47. Qxc4+
{[%clk 0:00:02.1]} 47... Kg7 {[%clk 0:00:02]} 48. Qc7+ {[%clk 0:00:02.3]} 48...
Qf7 {[%clk 0:00:01.6]} 49. Rxh7+ {[%clk 0:00:02.6]} 49... Kxh7 {[%clk
0:00:02.4]} 50. Qxf7+ {[%clk 0:00:03.3]} 50... Bg7 {[%clk 0:00:03.3]} 51. Qc7
{[%clk 0:00:02.6]} 51... Kh8 {[%clk 0:00:02.4]} 52. Qc8+ {[%clk 0:00:02.8]}
52... Kh7 {[%clk 0:00:02.9]} 53. Qh3+ {[%clk 0:00:03.5]} 53... Kg8 {[%clk
0:00:03.2]} 54. Qc8+ {[%clk 0:00:03.9]} 54... Kh7 {[%clk 0:00:03.9]} 55. Qh3+
{[%clk 0:00:03.5]} 55... Kg8 {[%clk 0:00:04.3]} 56. Qe6+ {[%clk 0:00:04.1]}
56... Kh7 {[%clk 0:00:05]} 57. Qe1 {[%clk 0:00:03.4]} 57... Bb2 {[%clk
0:00:02.5]} 58. Qh1+ {[%clk 0:00:03.8]} 58... Kg8 {[%clk 0:00:02.2]} 59. Qd5+
{[%clk 0:00:03.9]} 59... Kh7 {[%clk 0:00:02.3]} 60. Qb7+ {[%clk 0:00:04]} 60...
Bg7 {[%clk 0:00:02.5]} 61. Qc7 {[%clk 0:00:03.8]} 61... a5 {[%clk 0:00:01.5]}
62. f5 {[%clk 0:00:04.1]} 62... gxf5 {[%clk 0:00:02.3]} 63. Kf4 {[%clk
0:00:04.4]} 63... Kg8 {[%clk 0:00:01.6]} 64. Kxf5 {[%clk 0:00:04.5]} 1-0

[Event "Early-Titled-Tuesday-Blitz-February-06-2024"]
[Site "Chess.com"]
[Date "2024.02.06"]
[Round "8"]
[White "Barath1308"]
[Black "GoValya"]
[Result "1/2-1/2"]
[WhiteElo "2390"]
[BlackElo "2278"]
[TimeControl "180+1"]
[EndTime "9:29:38 PST"]
[Termination "Game drawn by repetition"]

1. Nf3 {[%clk 0:02:59.7]} 1... Nf6 {[%clk 0:02:53.7]} 2. b3 {[%clk 0:02:57.6]}
2... d5 {[%clk 0:02:54]} 3. Bb2 {[%clk 0:02:56.3]} 3... e6 {[%clk 0:02:54]} 4.
g3 {[%clk 0:02:56.8]} 4... Be7 {[%clk 0:02:54.7]} 5. Bg2 {[%clk 0:02:57.5]} 5...
O-O {[%clk 0:02:55.4]} 6. O-O {[%clk 0:02:58.1]} 6... c5 {[%clk 0:02:56.1]} 7.
d3 {[%clk 0:02:57.5]} 7... Nc6 {[%clk 0:02:56.7]} 8. Nbd2 {[%clk 0:02:57.9]}
8... d4 {[%clk 0:02:54.4]} 9. c3 {[%clk 0:02:50.2]} 9... a6 {[%clk 0:02:51.1]}
10. a3 {[%clk 0:02:44.2]} 10... e5 {[%clk 0:02:37.4]} 11. Rb1 {[%clk 0:02:39.7]}
11... Be6 {[%clk 0:02:33.6]} 12. b4 {[%clk 0:02:37.1]} 12... cxb4 {[%clk
0:02:31.3]} 13. axb4 {[%clk 0:02:35.8]} 13... h6 {[%clk 0:02:28.4]} 14. cxd4
{[%clk 0:02:26.3]} 14... exd4 {[%clk 0:02:23.7]} 15. Nb3 {[%clk 0:02:25.5]}
15... Bxb3 {[%clk 0:01:27]} 16. Qxb3 {[%clk 0:02:22.5]} 16... Qd5 {[%clk
0:01:13.2]} 17. Qxd5 {[%clk 0:02:10.4]} 17... Nxd5 {[%clk 0:01:14.1]} 18. Nxd4
{[%clk 0:02:11]} 18... Ncxb4 {[%clk 0:01:01.8]} 19. Nf5 {[%clk 0:02:02.2]} 19...
Bf6 {[%clk 0:00:53.4]} 20. Bxf6 {[%clk 0:02:01.5]} 20... gxf6 {[%clk 0:00:54]}
21. Bxd5 {[%clk 0:01:54.2]} 21... Nxd5 {[%clk 0:00:53.2]} 22. Rxb7 {[%clk
0:01:54.9]} 22... a5 {[%clk 0:00:41.2]} 23. Nxh6+ {[%clk 0:01:44.4]} 23... Kg7
{[%clk 0:00:39.2]} 24. Nf5+ {[%clk 0:01:44.2]} 24... Kg6 {[%clk 0:00:38.4]} 25.
e4 {[%clk 0:01:40.6]} 25... Nc3 {[%clk 0:00:34.9]} 26. Ne7+ {[%clk 0:01:39.8]}
26... Kg7 {[%clk 0:00:33]} 27. Nf5+ {[%clk 0:01:34.1]} 27... Kg6 {[%clk
0:00:32.4]} 28. Kg2 {[%clk 0:01:33.7]} 28... Rfb8 {[%clk 0:00:21.4]} 29. Rc7
{[%clk 0:01:30.3]} 29... Nb5 {[%clk 0:00:20.4]} 30. Rc5 {[%clk 0:01:13.2]} 30...
a4 {[%clk 0:00:20.2]} 31. Ne3 {[%clk 0:01:08]} 31... a3 {[%clk 0:00:19.1]} 32.
Nc2 {[%clk 0:01:08]} 32... a2 {[%clk 0:00:18.4]} 33. Ra1 {[%clk 0:01:06.9]}
33... Nd6 {[%clk 0:00:16.6]} 34. h4 {[%clk 0:00:38.5]} 34... Rb1 {[%clk
0:00:15.7]} 35. h5+ {[%clk 0:00:34.5]} 35... Kg7 {[%clk 0:00:16]} 36. Rc6 {[%clk
0:00:30.4]} 36... Nb5 {[%clk 0:00:16]} 37. Rb6 {[%clk 0:00:20.6]} 37... Nd4
{[%clk 0:00:16]} 38. Rbxb1 {[%clk 0:00:16.7]} 38... axb1=Q {[%clk 0:00:16.3]}
39. Rxb1 {[%clk 0:00:17.6]} 39... Nxc2 {[%clk 0:00:16.8]} 40. Rc1 {[%clk
0:00:13.9]} 40... Nd4 {[%clk 0:00:16.2]} 41. Rc4 {[%clk 0:00:14.6]} 41... Ne6
{[%clk 0:00:16.2]} 42. f4 {[%clk 0:00:14.5]} 42... Ra2+ {[%clk 0:00:15.6]} 43.
Kf3 {[%clk 0:00:13.9]} 43... Ra3 {[%clk 0:00:16.2]} 44. Ke3 {[%clk 0:00:13.9]}
44... Rb3 {[%clk 0:00:15.9]} 45. g4 {[%clk 0:00:13.4]} 45... Rb1 {[%clk
0:00:15.5]} 46. f5 {[%clk 0:00:13.6]} 46... Ng5 {[%clk 0:00:15.6]} 47. Rc6
{[%clk 0:00:13.4]} 47... Re1+ {[%clk 0:00:15.4]} 48. Kd4 {[%clk 0:00:12.8]}
48... Rg1 {[%clk 0:00:15.1]} 49. h6+ {[%clk 0:00:12.6]} 49... Kxh6 {[%clk
0:00:14.4]} 50. Rxf6+ {[%clk 0:00:13.3]} 50... Kg7 {[%clk 0:00:15.3]} 51. Ra6
{[%clk 0:00:12]} 51... Rxg4 {[%clk 0:00:16.2]} 52. Kd5 {[%clk 0:00:11.7]} 52...
Rg3 {[%clk 0:00:15.9]} 53. d4 {[%clk 0:00:11.4]} 53... Nf3 {[%clk 0:00:16.4]}
54. e5 {[%clk 0:00:10.5]} 54... Rg2 {[%clk 0:00:16.9]} 55. Ra7 {[%clk 0:00:08]}
55... Rd2 {[%clk 0:00:16.6]} 56. Ra4 {[%clk 0:00:07.7]} 56... f6 {[%clk
0:00:16.1]} 57. Ke4 {[%clk 0:00:06.2]} 57... Ng5+ {[%clk 0:00:15.1]} 58. Ke3
{[%clk 0:00:05.3]} 58... Rd1 {[%clk 0:00:14.7]} 59. Ra7+ {[%clk 0:00:05.2]}
59... Kf8 {[%clk 0:00:13.6]} 60. e6 {[%clk 0:00:05.7]} 60... Re1+ {[%clk
0:00:13.1]} 61. Kf4 {[%clk 0:00:04.4]} 61... Re4+ {[%clk 0:00:13.2]} 62. Kg3
{[%clk 0:00:02.5]} 62... Rxd4 {[%clk 0:00:14.1]} 63. Ra8+ {[%clk 0:00:02.9]}
63... Ke7 {[%clk 0:00:14]} 64. Ra7+ {[%clk 0:00:03.4]} 64... Ke8 {[%clk
0:00:14.2]} 65. Ra8+ {[%clk 0:00:03.6]} 65... Ke7 {[%clk 0:00:14.8]} 66. Ra7+
{[%clk 0:00:04]} 66... Ke8 {[%clk 0:00:15.3]} 67. Ra8+ {[%clk 0:00:04.3]} 67...
Ke7 {[%clk 0:00:15.2]} 1/2-1/2

[Event "Early-Titled-Tuesday-Blitz-February-06-2024"]
[Site "Chess.com"]
[Date "2024.02.06"]
[Round "8"]
[White "kingofthenil"]
[Black "Binary010"]
[Result "1-0"]
[WhiteElo "2684"]
[BlackElo "2848"]
[TimeControl "180+1"]
[EndTime "9:29:40 PST"]
[Termination "kingofthenil won on time"]

1. d4 {[%clk 0:03:00.9]} 1... Nf6 {[%clk 0:02:59.9]} 2. c4 {[%clk 0:03:00]} 2...
e6 {[%clk 0:03:00.2]} 3. Nf3 {[%clk 0:03:00.2]} 3... b6 {[%clk 0:03:00.4]} 4. g3
{[%clk 0:02:59.2]} 4... Ba6 {[%clk 0:03:00.7]} 5. b3 {[%clk 0:02:59.4]} 5... d5
{[%clk 0:03:00.2]} 6. Bg2 {[%clk 0:02:57.4]} 6... Bb4+ {[%clk 0:03:00.4]} 7. Bd2
{[%clk 0:02:57.4]} 7... Be7 {[%clk 0:03:00.7]} 8. Nc3 {[%clk 0:02:51]} 8... O-O
{[%clk 0:02:52.9]} 9. cxd5 {[%clk 0:02:50]} 9... exd5 {[%clk 0:02:53]} 10. O-O
{[%clk 0:02:48.5]} 10... Re8 {[%clk 0:02:52.4]} 11. Ne5 {[%clk 0:02:47.8]} 11...
Bb7 {[%clk 0:02:44.4]} 12. Rc1 {[%clk 0:02:47.7]} 12... Nbd7 {[%clk 0:02:19.2]}
13. Bf4 {[%clk 0:02:38]} 13... Nf8 {[%clk 0:02:10]} 14. Nb5 {[%clk 0:02:35.2]}
14... c5 {[%clk 0:02:10.1]} 15. dxc5 {[%clk 0:02:22.6]} 15... bxc5 {[%clk
0:02:08.7]} 16. b4 {[%clk 0:02:21.4]} 16... a6 {[%clk 0:02:00.6]} 17. Nc3 {[%clk
0:01:28.2]} 17... cxb4 {[%clk 0:02:00.3]} 18. Na4 {[%clk 0:01:28.5]} 18... Ne6
{[%clk 0:01:57.7]} 19. Nc6 {[%clk 0:01:22.8]} 19... Bxc6 {[%clk 0:01:50.7]} 20.
Rxc6 {[%clk 0:01:23.7]} 20... Nxf4 {[%clk 0:01:47.3]} 21. gxf4 {[%clk
0:01:24.6]} 21... Rc8 {[%clk 0:00:51]} 22. Rxa6 {[%clk 0:01:21.4]} 22... Rc4
{[%clk 0:00:47.1]} 23. e3 {[%clk 0:01:19.8]} 23... Bf8 {[%clk 0:00:35.6]} 24.
Qd3 {[%clk 0:01:06.3]} 24... Qc8 {[%clk 0:00:24.1]} 25. Rxf6 {[%clk 0:00:59.9]}
25... gxf6 {[%clk 0:00:23]} 26. Nb6 {[%clk 0:01:00.1]} 26... Rc3 {[%clk
0:00:16.1]} 27. Qd1 {[%clk 0:00:48.4]} 27... Qf5 {[%clk 0:00:13.2]} 28. Nxd5
{[%clk 0:00:49.3]} 28... Rcc8 {[%clk 0:00:10.4]} 29. Kh1 {[%clk 0:00:40.7]}
29... Kh8 {[%clk 0:00:10.5]} 30. Qb3 {[%clk 0:00:25.6]} 30... Qe6 {[%clk
0:00:08.3]} 31. Rg1 {[%clk 0:00:22.4]} 31... Bg7 {[%clk 0:00:08.2]} 32. Qxb4
{[%clk 0:00:20.7]} 32... Red8 {[%clk 0:00:06.9]} 33. Qb5 {[%clk 0:00:17.6]}
33... f5 {[%clk 0:00:06.4]} 34. a4 {[%clk 0:00:17.5]} 34... Rb8 {[%clk
0:00:04.4]} 35. Qc4 {[%clk 0:00:15.7]} 35... Rdc8 {[%clk 0:00:04.8]} 36. Qd3
{[%clk 0:00:14.3]} 36... Rb2 {[%clk 0:00:04.9]} 37. a5 {[%clk 0:00:12.8]} 37...
Rxf2 {[%clk 0:00:04.8]} 38. Nb6 {[%clk 0:00:12.1]} 38... Re8 {[%clk 0:00:03.4]}
39. Nd5 {[%clk 0:00:08.1]} 39... Ra2 {[%clk 0:00:03.1]} 40. Nc7 {[%clk
0:00:07.5]} 40... Qxe3 {[%clk 0:00:03.7]} 41. Qxf5 {[%clk 0:00:05.1]} 41... Rxg2
{[%clk 0:00:03.1]} 42. Rxg2 {[%clk 0:00:03.4]} 42... Qc1+ {[%clk 0:00:03.5]} 43.
Rg1 {[%clk 0:00:03.2]} 43... Qxc7 {[%clk 0:00:04.1]} 44. Qg5 {[%clk 0:00:02.9]}
44... Qc6+ {[%clk 0:00:04.4]} 45. Qg2 {[%clk 0:00:02.8]} 45... Qxg2+ {[%clk
0:00:04.4]} 46. Kxg2 {[%clk 0:00:03.2]} 46... Ra8 {[%clk 0:00:05]} 47. Rd1
{[%clk 0:00:02.8]} 47... Bf6 {[%clk 0:00:04.1]} 48. Rd5 {[%clk 0:00:03.1]} 48...
Kg7 {[%clk 0:00:04.8]} 49. Kf3 {[%clk 0:00:03.1]} 49... Kf8 {[%clk 0:00:05.4]}
50. Rc5 {[%clk 0:00:02.5]} 50... Ke7 {[%clk 0:00:05.7]} 51. Rc7+ {[%clk
0:00:02.1]} 51... Ke6 {[%clk 0:00:06.4]} 52. Rc6+ {[%clk 0:00:02.2]} 52... Kf5
{[%clk 0:00:05.8]} 53. a6 {[%clk 0:00:02.5]} 53... Bg7 {[%clk 0:00:04.8]} 54. h4
{[%clk 0:00:02.4]} 54... f6 {[%clk 0:00:04.9]} 55. Rc5+ {[%clk 0:00:02.2]} 55...
Ke6 {[%clk 0:00:05.2]} 56. h5 {[%clk 0:00:03.1]} 56... Kd6 {[%clk 0:00:05]} 57.
Ra5 {[%clk 0:00:02.7]} 57... Kc6 {[%clk 0:00:04.8]} 58. Kg4 {[%clk 0:00:02.5]}
58... Kb6 {[%clk 0:00:04.7]} 59. Ra2 {[%clk 0:00:02.3]} 59... Rxa6 {[%clk
0:00:05.2]} 60. Rxa6+ {[%clk 0:00:03]} 60... Kxa6 {[%clk 0:00:06.1]} 61. Kf5
{[%clk 0:00:03.8]} 61... Kb7 {[%clk 0:00:05]} 62. Ke6 {[%clk 0:00:03.9]} 62...
Kc7 {[%clk 0:00:04.9]} 63. f5 {[%clk 0:00:03.8]} 63... Kd8 {[%clk 0:00:04.3]}
64. Kf7 {[%clk 0:00:04.3]} 64... Bh6 {[%clk 0:00:03.1]} 65. Kg8 {[%clk
0:00:04.2]} 65... Ke8 {[%clk 0:00:03.1]} 66. Kxh7 {[%clk 0:00:05.1]} 66... Bg5
{[%clk 0:00:03.3]} 67. Kg7 {[%clk 0:00:05.6]} 67... Ke7 {[%clk 0:00:03.2]} 68.
h6 {[%clk 0:00:06]} 68... Bxh6+ {[%clk 0:00:01.6]} 69. Kxh6 {[%clk 0:00:06.9]}
69... Kd6 {[%clk 0:00:02.3]} 70. Kg7 {[%clk 0:00:07.5]} 70... Ke5 {[%clk
0:00:02.6]} 71. Kg6 {[%clk 0:00:07.9]} 1-0

[Event "Early-Titled-Tuesday-Blitz-February-06-2024"]
[Site "Chess.com"]
[Date "2024.02.06"]
[Round "8"]
[White "LikeWater"]
[Black "Juwen"]
[Result "0-1"]
[WhiteElo "2815"]
[BlackElo "2601"]
[TimeControl "180+1"]
[EndTime "9:29:53 PST"]
[Termination "Juwen won on time"]

1. e4 {[%clk 0:02:59.5]} 1... c5 {[%clk 0:02:59.4]} 2. c3 {[%clk 0:02:59.4]}
2... Nf6 {[%clk 0:02:54.6]} 3. e5 {[%clk 0:02:59.1]} 3... Nd5 {[%clk 0:02:54.7]}
4. Nf3 {[%clk 0:02:58.9]} 4... d6 {[%clk 0:02:52.5]} 5. exd6 {[%clk 0:02:52.6]}
5... Qxd6 {[%clk 0:02:51.2]} 6. d4 {[%clk 0:02:51.4]} 6... cxd4 {[%clk 0:02:50]}
7. cxd4 {[%clk 0:02:51.1]} 7... g6 {[%clk 0:02:43.7]} 8. Be2 {[%clk 0:02:49.1]}
8... Bg7 {[%clk 0:02:43.7]} 9. O-O {[%clk 0:02:48.7]} 9... O-O {[%clk
0:02:44.4]} 10. Nc3 {[%clk 0:02:48.4]} 10... Nc6 {[%clk 0:02:44]} 11. Ne4 {[%clk
0:02:40.9]} 11... Qc7 {[%clk 0:02:39.5]} 12. Be3 {[%clk 0:02:30.9]} 12... Rd8
{[%clk 0:02:38.2]} 13. Rc1 {[%clk 0:02:29.3]} 13... Bf5 {[%clk 0:02:31]} 14. Nc5
{[%clk 0:02:17]} 14... Rac8 {[%clk 0:01:58.3]} 15. Qb3 {[%clk 0:02:09.2]} 15...
b6 {[%clk 0:01:43]} 16. Na6 {[%clk 0:01:44]} 16... Qb7 {[%clk 0:01:41.4]} 17.
Qa4 {[%clk 0:01:40.8]} 17... Bd7 {[%clk 0:01:23.3]} 18. Bb5 {[%clk 0:01:33.9]}
18... Nf6 {[%clk 0:00:57.9]} 19. Rfd1 {[%clk 0:00:55.3]} 19... e6 {[%clk
0:00:51.1]} 20. Bf4 {[%clk 0:00:36.3]} 20... Nd5 {[%clk 0:00:47.6]} 21. Bg3
{[%clk 0:00:36]} 21... Na5 {[%clk 0:00:26.8]} 22. Bxd7 {[%clk 0:00:13]} 22...
Rxd7 {[%clk 0:00:27.7]} 23. Rxc8+ {[%clk 0:00:07.3]} 23... Qxc8 {[%clk
0:00:28.6]} 24. Nc5 {[%clk 0:00:05.9]} 24... bxc5 {[%clk 0:00:24.6]} 25. Qxa5
{[%clk 0:00:06]} 25... cxd4 {[%clk 0:00:25.3]} 26. h4 {[%clk 0:00:05.8]} 26...
Nb6 {[%clk 0:00:24.2]} 27. Qd2 {[%clk 0:00:05.2]} 27... d3 {[%clk 0:00:24]} 28.
Rc1 {[%clk 0:00:05.4]} 28... Qd8 {[%clk 0:00:23.2]} 29. Be5 {[%clk 0:00:05.2]}
29... h6 {[%clk 0:00:22.3]} 30. Bxg7 {[%clk 0:00:04.8]} 30... Kxg7 {[%clk
0:00:23.2]} 31. Rd1 {[%clk 0:00:04.4]} 31... Rd5 {[%clk 0:00:23.3]} 32. Qc3+
{[%clk 0:00:04.3]} 32... Qf6 {[%clk 0:00:22.3]} 33. Rxd3 {[%clk 0:00:03.2]}
33... Rxd3 {[%clk 0:00:18.8]} 34. Qxd3 {[%clk 0:00:04.1]} 34... Qxb2 {[%clk
0:00:19.4]} 35. Qa6 {[%clk 0:00:03.8]} 35... Qc1+ {[%clk 0:00:17.3]} 36. Kh2
{[%clk 0:00:03.8]} 36... Qf4+ {[%clk 0:00:17.1]} 37. Kg1 {[%clk 0:00:04.4]}
37... Qc7 {[%clk 0:00:17.7]} 38. Qa3 {[%clk 0:00:03.8]} 38... Nd5 {[%clk
0:00:17.6]} 39. Qb2+ {[%clk 0:00:03.4]} 39... Qc3 {[%clk 0:00:17.7]} 40. Qb8
{[%clk 0:00:02.2]} 40... a5 {[%clk 0:00:16.3]} 41. Ne5 {[%clk 0:00:01.1]} 41...
Qe1+ {[%clk 0:00:15.1]} 42. Kh2 {[%clk 0:00:01.5]} 42... Qxf2 {[%clk 0:00:15]}
43. Nf3 {[%clk 0:00:01.8]} 43... Qe3 {[%clk 0:00:14]} 44. Qd6 {[%clk 0:00:01.9]}
44... Qf4+ {[%clk 0:00:14.1]} 45. Qxf4 {[%clk 0:00:02.1]} 45... Nxf4 {[%clk
0:00:15]} 46. Nd4 {[%clk 0:00:02.6]} 46... Nd5 {[%clk 0:00:15.1]} 47. a3 {[%clk
0:00:02.6]} 47... Kf6 {[%clk 0:00:13.6]} 48. Kg3 {[%clk 0:00:03]} 48... a4
{[%clk 0:00:12.6]} 49. Kf3 {[%clk 0:00:03.5]} 49... Nb6 {[%clk 0:00:12.8]} 50.
Nb5 {[%clk 0:00:04]} 50... Ke5 {[%clk 0:00:12.4]} 51. Ke3 {[%clk 0:00:04.2]}
51... f5 {[%clk 0:00:12.7]} 52. g3 {[%clk 0:00:04.3]} 52... g5 {[%clk 0:00:13]}
53. h5 {[%clk 0:00:04.3]} 53... Nd5+ {[%clk 0:00:12]} 54. Kd3 {[%clk 0:00:04.3]}
54... f4 {[%clk 0:00:12.4]} 55. g4 {[%clk 0:00:04.6]} 55... Nf6 {[%clk
0:00:12.2]} 56. Nc3 {[%clk 0:00:04.2]} 56... Nxg4 {[%clk 0:00:12.6]} 57. Nxa4
{[%clk 0:00:04.6]} 57... f3 {[%clk 0:00:13.2]} 58. Nc3 {[%clk 0:00:04.4]} 58...
Kf4 {[%clk 0:00:13.5]} 59. a4 {[%clk 0:00:04.7]} 59... Kg3 {[%clk 0:00:13.1]}
60. a5 {[%clk 0:00:04.3]} 60... Kg2 {[%clk 0:00:12.3]} 61. Ke4 {[%clk
0:00:04.2]} 61... f2 {[%clk 0:00:12.2]} 62. Nd1 {[%clk 0:00:04]} 62... f1=Q
{[%clk 0:00:12.2]} 0-1